bitfinex/quotes_SOLUSD_20251204
["timestamp","ask_amount","ask_price","bid_price","bid_amount"]
[1764879009092,0.70000001,139.82,139.81,7.15256419]
[1764879009273,0.70000001,139.82,139.8,15.03895512]
[1764879009468,0.70000001,139.82,139.8,7.94]
[1764879009927,0.70000001,139.82,139.8,15.09300213]
[1764879010087,1e-08,139.82,139.81,14.25151931]
[1764879010477,1e-08,139.82,139.81,14.92151931]
[1764879010673,1e-08,139.82,139.81,14.25151931]
[1764879010898,1e-08,139.82,139.81,30.56038331]
[1764879011397,1e-08,139.82,139.81,38.50038331]
[1764879012471,1e-08,139.82,139.78,0.67]
[1764879012472,0.70000001,139.82,139.77,25.82598316]
[1764879012699,14.9511334,139.82,139.77,23.46330735]
[1764879012876,14.9511334,139.82,139.78,7.15408247]
[1764879013085,0.67,139.81,139.78,14.25303759]
[1764879013395,0.67,139.81,139.77,22.19318317]
[1764879013396,7.76895512,139.81,139.77,22.19318317]
[1764879013577,7.76895512,139.81,139.77,15.03895512]
[1764879013777,0.67,139.8,139.74,17.89008109]
[1764879013982,8.80994492,139.79,139.75,7.15557113]
[1764879014311,7.09895512,139.78,139.74,22.1949708]
[1764879014474,7.09895512,139.77,139.73,14.25548724]
[1764879014681,7.09895512,139.76,139.73,7.15653212]
[1764879014989,7.76895512,139.76,139.73,7.15653212]
[1764879015186,0.67,139.75,139.73,7.15653212]
[1764879015576,0.67,139.75,139.72,7.15695742]
[1764879015811,0.67,139.75,139.71,14.25643597]
[1764879016011,7.76895512,139.75,139.72,7.15708721]
[1764879016376,0.67,139.74,139.72,7.15708721]
[1764879017099,0.67,139.74,139.72,14.25604233]
[1764879017304,0.67,139.74,139.71,22.19646698]
[1764879017595,15.90890004,139.73,139.68,7.09895512]
[1764879017897,7.09895512,139.73,139.69,7.09895512]
[1764879018073,7.09895512,139.73,139.68,25.83727494]
[1764879018074,0.67,139.72,139.68,25.83727494]
[1764879018274,0.67,139.72,139.69,7.09895512]
[1764879018474,0.67,139.72,139.7,7.15785177]
[1764879019001,0.67,139.72,139.7,14.25680689]
[1764879019806,0.67,139.72,139.7,7.15785177]
[1764879020317,7.76895512,139.75,139.71,7.09895512]
[1764879020498,0.67,139.74,139.71,7.09895512]
[1764879021288,7.15480655,139.77,139.72,7.09895512]
[1764879021495,7.09895512,139.76,139.71,7.94]
[1764879021684,7.76895512,139.76,139.72,7.09895512]
[1764879021997,0.67,139.75,139.71,8.63]
[1764879022382,0.67,139.75,139.72,7.15717148]
[1764879022581,14.25321866,139.78,139.72,25.05010019]
[1764879022887,0.67,139.77,139.72,25.74010019]
[1764879023188,0.67,139.77,139.72,25.05010019]
[1764879024385,14.92366456,139.77,139.72,25.05010019]
[1764879024680,7.76895512,139.77,139.72,25.05010019]
[1764879025002,25.11880892,139.79,139.75,7.09895512]
[1764879025003,16.57890004,139.79,139.75,7.09895512]
[1764879025183,0.67,139.79,139.75,7.09895512]
[1764879025377,0.67,139.78,139.75,7.09895512]
[1764879025573,0.67,139.8,139.77,7.09895512]
[1764879025796,7.15281082,139.81,139.77,7.09895512]
[1764879026001,0.67,139.8,139.77,7.09895512]
[1764879026497,0.67000001,139.82,139.79,7.09895512]
[1764879026691,0.67000001,139.82,139.78,7.15409929]
[1764879026692,1e-08,139.82,139.81,7.09895512]
[1764879026884,1e-08,139.82,139.81,7.78895512]
[1764879028293,1e-08,139.82,139.81,14.25151931]
[1764879028487,1e-08,139.82,139.81,14.94151931]
[1764879028889,1e-08,139.82,139.81,14.25151931]
[1764879029811,1e-08,139.82,139.81,14.94151931]
[1764879030413,1e-08,139.82,139.81,14.25151931]
[1764879030617,1e-08,139.82,139.81,22.19151931]
[1764879030789,1e-08,139.82,139.81,15.09256419]
[1764879030990,1e-08,139.82,139.81,22.19151931]
[1764879031600,1e-08,139.82,139.81,15.09256419]
[1764879031798,1e-08,139.82,139.81,22.19151931]
[1764879034614,1e-08,139.82,139.79,23.46224994]
[1764879034929,7.09895512,139.8,139.71,17.89356567]
[1764879035212,9.47994493,139.82,139.74,7.09895512]
[1764879035213,8.80994492,139.79,139.74,7.09895512]
[1764879035508,7.09895512,139.78,139.74,7.09895512]
[1764879035710,7.09895512,139.78,139.75,7.1556183]
[1764879035917,0.67,139.77,139.75,7.1556183]
[1764879036418,7.15360116,139.79,139.75,14.25457342]
[1764879036419,0.67,139.79,139.75,14.25457342]
[1764879036621,0.67,139.78,139.75,14.25457342]
[1764879037519,7.76895512,139.78,139.74,14.25500841]
[1764879037698,14.92307621,139.78,139.74,14.25500841]
[1764879037900,0.67,139.77,139.74,14.25500841]
[1764879038289,0.67,139.77,139.74,7.15605329]
[1764879039414,0.67,139.77,139.74,14.25500841]
[1764879039600,16.308864,139.8,139.75,7.09895512]
[1764879039805,0.67,139.79,139.76,7.09895512]
[1764879040313,0.67,139.79,139.75,7.09895512]
[1764879040617,7.15212125,139.82,139.76,0.69]
[1764879040802,7.76895512,139.81,139.77,7.09895512]
[1764879041318,0.67,139.8,139.77,7.09895512]
[1764879041518,0.67000001,139.82,139.79,14.25207147]
[1764879042098,1e-08,139.82,139.81,7.09895512]
[1764879042901,1e-08,139.82,139.8,0.69]
[1764879042902,1e-08,139.82,139.8,7.09895512]
[1764879043798,1e-08,139.82,139.79,32.97708516]
[1764879044004,1e-08,139.82,139.8,7.09895512]
[1764879044932,1e-08,139.82,139.81,7.09895512]
[1764879046229,1e-08,139.82,139.8,14.25165852]
[1764879048324,1e-08,139.82,139.8,7.1527034]
[1764879048523,0.68000001,139.82,139.79,22.1921918]
[1764879050419,0.68000001,139.82,139.79,15.09323668]
[1764879054023,7.09895512,139.81,139.77,7.09895512]
[1764879054535,0.68,139.8,139.77,7.81895512]
[1764879054722,1e-08,139.82,139.79,7.15358752]
[1764879055122,1e-08,139.82,139.79,14.97254264]
[1764879056328,1e-08,139.82,139.8,7.09895512]
[1764879056527,0.68000001,139.82,139.79,40.07651145]
[1764879057035,7.77895513,139.82,139.79,15.09358752]
[1764879057822,1e-08,139.82,139.8,7.81895512]
[1764879058022,1e-08,139.82,139.8,7.09895512]
[1764879058236,1e-08,139.82,139.8,7.15259006]
[1764879058436,1e-08,139.82,139.8,7.87259006]
[1764879058932,1e-08,139.82,139.8,7.15259006]
[1764879059135,0.68,139.81,139.79,15.09317955]
[1764879059349,0.68,139.81,139.78,7.15390646]
[1764879059835,7.77895513,139.82,139.79,7.15353055]
[1764879060339,0.68,139.81,139.79,7.15353055]
[1764879060633,7.77895513,139.82,139.79,7.15353055]
[1764879060839,1e-08,139.82,139.79,14.97248567]
[1764879061037,1e-08,139.82,139.8,7.81895512]
[1764879061742,1e-08,139.82,139.81,7.81895512]
[1764879061916,1e-08,139.82,139.81,7.09895512]
[1764879062461,1e-08,139.82,139.8,20.28895473]
[1764879062642,0.68000001,139.82,139.8,7.15288812]
[1764879063137,1e-08,139.82,139.8,7.15288812]
[1764879063433,1e-08,139.82,139.78,8.66]
[1764879063626,13.02895473,139.81,139.77,17.88575449]
[1764879063826,0.68,139.81,139.77,30.95470922]
[1764879064025,0.68,139.8,139.78,7.15385321]
[1764879064525,7.83317128,139.8,139.77,19.50340563]
[1764879064720,0.68,139.8,139.77,19.50340563]
[1764879064944,0.68,139.79,139.77,7.1544509]
[1764879065125,13.02895473,139.79,139.76,7.15489011]
[1764879065740,0.68,139.79,139.76,7.15489011]
[1764879066244,0.68,139.79,139.7,21.15889965]
[1764879066245,12.34895473,139.77,139.71,30.24259645]
[1764879066441,12.34895473,139.77,139.72,7.15704983]
[1764879066442,19.50418035,139.76,139.72,7.15704983]
[1764879066646,20.18418035,139.76,139.72,7.15704983]
[1764879066838,0.68,139.75,139.72,7.15704983]
[1764879067033,0.68,139.75,139.71,38.18259645]
[1764879067034,13.02895473,139.75,139.71,7.94]
[1764879067238,12.34895473,139.73,139.7,7.15782342]
[1764879067541,12.34895473,139.74,139.7,20.22677815]
[1764879067741,13.02895473,139.74,139.7,7.87782342]
[1764879068244,0.68,139.73,139.7,7.87782342]
[1764879068621,0.68,139.73,139.7,7.15782342]
[1764879069241,12.34895473,139.72,139.68,12.34895473]
[1764879069479,12.34895473,139.72,139.69,7.15833443]
[1764879069631,0.68,139.72,139.69,7.15833443]
[1764879069830,12.34895473,139.74,139.7,20.22713146]
[1764879070127,13.02895473,139.74,139.7,7.15817673]
[1764879070330,12.34895473,139.72,139.69,7.15851836]
[1764879070536,12.34895473,139.72,139.67,7.94]
[1764879070537,12.34895473,139.7,139.66,12.34895473]
[1764879070738,12.34895473,139.71,139.67,13.06895473]
[1764879070937,8.62,139.72,139.68,12.34895473]
[1764879071137,8.62,139.72,139.68,13.06895473]
[1764879071647,28.12620573,139.72,139.68,13.06895473]
[1764879071827,20.96895473,139.72,139.68,13.06895473]
[1764879072227,8.62,139.72,139.68,12.34895473]
[1764879072450,27.44632292,139.72,139.67,13.06895473]
[1764879072748,13.02895473,139.72,139.68,13.06895473]
[1764879072949,0.68,139.72,139.68,13.06895473]
[1764879073135,13.02895473,139.72,139.68,13.06895473]
[1764879073538,20.28895473,139.73,139.69,13.05895473]
[1764879073842,13.03895473,139.73,139.69,13.05895473]
[1764879074049,0.69,139.73,139.69,13.05895473]
[1764879074241,13.03895473,139.73,139.69,13.05895473]
[1764879074950,13.03895473,139.72,139.68,15.09890497]
[1764879075124,12.34895473,139.7,139.68,7.15890497]
[1764879075324,12.34895473,139.7,139.67,7.15953032]
[1764879075522,13.03895473,139.7,139.67,7.15953032]
[1764879075751,0.69,139.7,139.68,7.15921143]
[1764879076743,16.65614379,139.74,139.69,20.21748207]
[1764879076927,13.03895473,139.74,139.7,12.34895473]
[1764879077127,19.50524156,139.74,139.69,45.34425349]
[1764879077441,0.69,139.73,139.69,46.05425349]
[1764879080232,0.69,139.73,139.7,7.86776119]
[1764879080630,12.34895473,139.74,139.7,20.21671592]
[1764879080834,13.03895473,139.74,139.7,20.21671592]
[1764879081035,20.19523907,139.74,139.7,20.21671592]
[1764879081931,13.03895473,139.73,139.68,16.308864]
[1764879082124,12.34895473,139.7,139.66,7.16024631]
[1764879082328,12.34895473,139.7,139.66,7.87024631]
[1764879082537,13.03895473,139.7,139.66,20.21920104]
[1764879083248,13.03895473,139.7,139.63,0.71]
[1764879083249,12.34895473,139.67,139.63,0.71]
[1764879083436,12.34895473,139.67,139.63,8.65]
[1764879083747,0.69,139.66,139.63,7.94]
[1764879084146,0.1035,139.66,139.64,7.16119691]
[1764879084347,12.34895473,139.66,139.62,12.34895473]
[1764879084549,12.34895473,139.66,139.62,0.71]
[1764879084728,7.15980796,139.67,139.63,20.22073301]
[1764879084932,19.50876269,139.67,139.63,20.22073301]
[1764879085133,12.34895473,139.68,139.63,19.51073301]
[1764879085330,12.34895473,139.68,139.64,0.71]
[1764879085536,12.34895473,139.7,139.66,12.34895473]
[1764879085828,12.34895473,139.71,139.66,12.34895473]
[1764879086032,12.34895473,139.71,139.67,0.71]
[1764879086343,12.34895473,139.71,139.68,7.15922107]
[1764879087151,15.09738337,139.72,139.68,7.15922107]
[1764879087349,7.94,139.72,139.68,19.5081758]
[1764879087548,19.50571323,139.73,139.68,20.2181758]
[1764879087735,20.19571323,139.73,139.68,20.2181758]
[1764879089047,20.19571323,139.73,139.69,7.86825102]
[1764879092837,20.19571323,139.73,139.69,20.21720575]
[1764879093153,7.1567585,139.73,139.7,7.86813505]
[1764879094157,19.50571323,139.73,139.68,12.34895473]
[1764879094363,13.03895473,139.72,139.68,19.50787768]
[1764879094566,13.03895473,139.72,139.68,20.21787768]
[1764879094942,13.03895473,139.72,139.68,7.86892295]
[1764879095152,13.03895473,139.72,139.68,20.21787768]
[1764879095769,0.69,139.71,139.68,7.15892295]
[1764879095960,13.03895473,139.71,139.67,27.44845365]
[1764879096159,8.80994492,139.7,139.66,7.16002062]
[1764879096358,9.49994492,139.7,139.65,15.81054217]
[1764879096562,12.34895473,139.68,139.64,7.16100172]
[1764879096754,20.97895473,139.68,139.64,7.87100172]
[1764879097141,20.97895473,139.68,139.64,20.21995645]
[1764879097768,8.63,139.68,139.64,20.21995645]
[1764879098147,15.78935502,139.68,139.64,20.21995645]
[1764879099073,15.78935502,139.68,139.64,7.87100172]
[1764879099267,15.78935502,139.68,139.64,20.21995645]
[1764879099855,15.78935502,139.68,139.63,17.90364338]
[1764879099856,27.44830975,139.68,139.63,7.16178471]
[1764879100056,0.69,139.67,139.63,20.22073944]
[1764879101173,7.94,139.68,139.65,12.34895473]
[1764879101378,29.78889965,139.7,139.66,13.05895473]
[1764879101578,36.94732069,139.7,139.66,13.05895473]
[1764879102149,21.15889965,139.68,139.63,25.0662465]
[1764879102355,21.15889965,139.68,139.63,38.12520123]
[1764879102356,0.69,139.67,139.63,38.12520123]
[1764879102754,0.69,139.67,139.63,37.41520123]
[1764879102956,12.34895473,139.67,139.64,0.71]
[1764879103281,13.06895473,139.67,139.63,20.22073944]
[1764879103977,19.5079088,139.69,139.64,13.05895473]
[1764879104212,12.34895473,139.69,139.65,12.34895473]
[1764879104358,130.86716274,139.7,139.66,0.71]
[1764879104688,13.06895473,139.69,139.65,13.05895473]
[1764879105197,21.15889965,139.68,139.63,45.35520123]
[1764879105363,29.03849051,139.68,139.63,46.06520123]
[1764879105562,29.03849051,139.68,139.64,0.71]
[1764879105772,0.72,139.67,139.63,7.16178471]
[1764879105958,0.72,139.67,139.61,7.26250005]
[1764879105959,28.65781873,139.65,139.61,7.26250005]
[1764879106383,4.6686879,139.64,139.61,7.97250005]
[1764879106772,4.6686879,139.64,139.61,7.26250005]
[1764879107062,5.3886879,139.63,139.61,0.1]
[1764879107276,4.6686879,139.62,139.61,0.1]
[1764879107782,12.55047776,139.63,139.61,0.1]
[1764879108787,4.6686879,139.63,139.61,0.1]
[1764879108969,20.63998898,139.64,139.61,0.1]
[1764879109176,4.6686879,139.63,139.61,0.1]
[1764879109763,4.6686879,139.64,139.61,0.81]
[1764879110079,31.40978683,139.65,139.61,5.4786879]
[1764879110080,36.07847473,139.65,139.61,5.4786879]
[1764879111383,36.07847473,139.65,139.61,12.64118491]
[1764879111685,36.07847473,139.65,139.62,5.3786879]
[1764879111686,16.308864,139.65,139.62,5.3786879]
[1764879111884,4.6686879,139.63,139.61,0.1]
[1764879113786,20.49040236,139.64,139.61,0.1]
[1764879114671,11.83054825,139.63,139.61,0.1]
[1764879115184,12.55054825,139.63,139.61,0.1]
[1764879116367,4.6686879,139.63,139.61,0.1]
[1764879116766,19.77016509,139.64,139.61,0.1]
[1764879116987,20.49016509,139.64,139.61,0.1]
[1764879117987,4.6686879,139.62,139.61,0.1]
[1764879118867,4.6686879,139.63,139.61,0.1]
[1764879119164,4.6686879,139.62,139.61,0.1]
[1764879119370,21.41863282,139.62,139.61,0.1]
[1764879119591,29.30093048,139.62,139.61,0.1]
[1764879121372,45.60979448,139.62,139.61,0.1]
[1764879122096,29.30093048,139.62,139.61,0.1]
[1764879122526,29.30093048,139.62,139.61,1e-08]
[1764879123692,16.69224258,139.62,139.61,1e-08]
[1764879123891,4.6686879,139.62,139.61,1e-08]
[1764879124398,10.15062305,139.63,139.61,1e-08]
[1764879124895,35.98958879,139.62,139.61,1e-08]
[1764879125191,43.92958879,139.62,139.61,1e-08]
[1764879126269,27.62072479,139.62,139.61,1e-08]
[1764879126471,25.11880892,139.58,139.57,0.1]
[1764879126677,36.06729113,139.58,139.57,0.1]
[1764879126872,43.23164132,139.58,139.57,0.1]
[1764879127094,2.98848221,139.58,139.57,0.1]
[1764879128300,10.1528324,139.58,139.57,0.1]
[1764879128794,43.95164132,139.58,139.57,0.1]
[1764879129568,46.94012353,139.58,139.57,0.1]
[1764879129972,8.80994492,139.57,139.56,0.1]
[1764879130196,9.52994492,139.57,139.56,0.1]
[1764879130405,12.51842713,139.57,139.56,0.1]
[1764879130618,11.79842713,139.57,139.56,0.1]
[1764879131105,18.96329063,139.57,139.56,0.1]
[1764879132382,19.68329063,139.57,139.56,0.1]
[1764879133105,35.99215463,139.57,139.56,0.1]
[1764879133975,33.00367242,139.57,139.56,0.1]
[1764879134177,35.99215463,139.57,139.56,0.1]
[1764879136308,35.27215463,139.57,139.56,0.1]
[1764879138686,35.94215463,139.57,139.56,0.1]
[1764879140096,8.80994492,139.57,139.56,0.82]
[1764879140292,18.96329063,139.57,139.56,0.1]
[1764879141190,26.92329063,139.57,139.56,0.1]
[1764879144294,23.93480842,139.57,139.56,0.1]
[1764879144614,26.92329063,139.57,139.56,0.1]
[1764879144988,26.92329063,139.57,139.56,0.82]
[1764879145311,23.93480842,139.57,139.56,0.82]
[1764879146890,2.98848221,139.59,139.56,0.82]
[1764879147389,2.98848221,139.58,139.56,0.82]
[1764879147588,2.98848221,139.58,139.56,7.98535358]
[1764879147803,2.98848221,139.59,139.56,7.98535358]
[1764879148003,2.98848221,139.59,139.57,0.72]
[1764879149615,10.15241993,139.59,139.57,0.72]
[1764879149820,2.98848221,139.58,139.57,0.72]
[1764879150114,10.15241993,139.59,139.57,0.72]
[1764879150318,2.98848221,139.59,139.57,0.72]
[1764879150497,26.92199684,139.6,139.57,0.72]
[1764879151723,19.75842713,139.6,139.57,7.88470731]
[1764879152020,7.16303749,139.61,139.57,7.88470731]
[1764879152193,7.16303749,139.61,139.58,0.72]
[1764879152398,2.98848221,139.6,139.58,0.72]
[1764879152700,10.1515197,139.61,139.58,0.72]
[1764879152900,2.98848221,139.6,139.58,0.72]
[1764879153706,2.98848221,139.59,139.57,7.88470731]
[1764879153912,2.98848221,139.59,139.58,0.72]
[1764879154325,7.16304566,139.61,139.58,0.72]
[1764879154525,2.98848221,139.59,139.58,0.72]
[1764879154896,7.96,139.62,139.58,0.72]
[1764879154897,18.11106868,139.62,139.58,0.72]
[1764879155620,7.96,139.62,139.58,7.88435019]
[1764879155925,10.94848221,139.62,139.59,0.72]
[1764879156233,15.1223262,139.62,139.59,0.72]
[1764879159223,2.98848221,139.6,139.57,0.72]
[1764879159425,2.98848221,139.59,139.58,0.72]
[1764879160527,2.98848221,139.6,139.58,0.72]
[1764879161529,2.98848221,139.59,139.58,0.72]
[1764879162726,7.16356595,139.6,139.58,0.72]
[1764879162915,2.98848221,139.59,139.58,0.72]
[1764879163114,10.15204816,139.6,139.58,0.72]
[1764879163326,2.98848221,139.59,139.56,7.95516413]
[1764879163516,2.98848221,139.59,139.57,0.69]
[1764879164023,2.98848221,139.61,139.57,0.69]
[1764879164630,10.94848221,139.62,139.57,3.67848221]
[1764879164830,2.98848221,139.63,139.58,2.98848221]
[1764879165018,2.98848221,139.63,139.58,3.67848221]
[1764879165218,2.98848221,139.63,139.59,0.69]
[1764879165422,2.98848221,139.63,139.6,7.16332378]
[1764879165826,2.98848221,139.63,139.61,0.69]
[1764879166039,2.98848221,139.63,139.58,17.91074484]
[1764879166040,2.98848221,139.62,139.59,7.16358403]
[1764879166343,2.98848221,139.61,139.59,0.69]
[1764879167110,18.95918617,139.65,139.59,10.84230978]
[1764879167308,11.79842713,139.65,139.59,28.75190215]
[1764879167507,18.95935941,139.65,139.61,7.16281068]
[1764879167823,2.98848221,139.64,139.61,7.16281068]
[1764879168033,2.98848221,139.64,139.62,0.69]
[1764879170859,2.98848221,139.63,139.59,0.69]
[1764879171030,2.98848221,139.62,139.6,0.69]
[1764879171432,2.98848221,139.62,139.57,25.85136874]
[1764879171641,2.98848221,139.61,139.58,0.69]
[1764879172355,9.52994492,139.63,139.58,0.69]
[1764879172567,7.16229766,139.62,139.58,7.85410657]
[1764879173055,7.16229766,139.62,139.59,0.69]
[1764879175122,7.16229766,139.62,139.58,7.16410657]
[1764879175321,7.88229766,139.62,139.58,7.16410657]
[1764879175524,7.88229766,139.62,139.58,7.85410657]
[1764879177345,7.16229766,139.62,139.59,0.69]
[1764879179257,2.98848221,139.6,139.57,15.10468957]
[1764879179572,11.79842713,139.61,139.58,7.85430335]
[1764879179766,2.98848221,139.62,139.59,7.16372999]
[1764879180071,2.98848221,139.62,139.6,0.69]
[1764879180266,109.86148248,139.64,139.6,0.69]
[1764879180574,2.98848221,139.64,139.6,0.69]
[1764879180949,11.79842713,139.65,139.6,11.61848221]
[1764879181148,11.79842713,139.65,139.61,7.16281068]
[1764879181356,18.08903848,139.66,139.61,28.7483196]
[1764879181670,18.08903848,139.66,139.62,0.69]
[1764879181671,2.98848221,139.66,139.62,0.69]
[1764879182253,40.21825069,139.68,139.62,3.67848221]
[1764879182596,7.15835164,139.7,139.64,2.98848221]
[1764879182775,15.09788306,139.71,139.65,0.69]
[1764879183070,2.98848221,139.69,139.66,7.16024631]
[1764879183463,2.98848221,139.69,139.67,0.69]
[1764879183861,2.98848221,139.7,139.67,0.69]
[1764879184066,11.79842713,139.71,139.67,0.69]
[1764879184464,13.47413333,139.71,139.67,0.69]
[1764879185176,4.66418841,139.7,139.67,0.69]
[1764879185379,16.68805427,139.71,139.67,0.69]
[1764879185573,4.66418841,139.7,139.67,0.69]
[1764879185971,6.01528034,139.78,139.67,0.69]
[1764879185972,8.80994492,139.75,139.67,20.45375912]
[1764879186182,4.66418841,139.74,139.69,4.66418841]
[1764879186479,4.66418841,139.73,139.68,5.35418841]
[1764879186653,15.96557998,139.75,139.67,32.99890485]
[1764879186654,4.66418841,139.72,139.69,0.69]
[1764879186855,4.66418841,139.7,139.67,7.84957071]
[1764879187065,4.66418841,139.7,139.68,0.69]
[1764879187281,7.15782636,139.71,139.68,0.69]
[1764879187462,4.66418841,139.7,139.68,0.69]
[1764879188180,4.66418841,139.7,139.68,7.84916596]
[1764879188377,4.66418841,139.71,139.68,7.84916596]
[1764879188586,4.66418841,139.72,139.69,0.69]
[1764879188793,7.35520387,139.76,139.69,0.69]
[1764879189084,13.47413333,139.75,139.7,4.66418841]
[1764879189263,13.47413333,139.75,139.71,7.84768377]
[1764879189658,8.14,139.76,139.72,0.69]
[1764879189864,12.80418841,139.76,139.72,0.69]
[1764879190966,0.2,139.76,139.73,11.82084768]
[1764879191359,0.2,139.76,139.74,0.69]
[1764879192892,8.80994492,139.78,139.75,4.66418841]
[1764879193058,16.508864,139.8,139.77,4.66418841]
[1764879193059,0.2,139.8,139.77,4.66418841]
[1764879193259,0.2,139.8,139.79,4.66418841]
[1764879193672,0.2,139.8,139.79,5.35418841]
[1764879194481,0.2,139.8,139.79,13.29418841]
[1764879195163,0.2,139.8,139.79,20.44777593]
[1764879196361,0.2,139.8,139.79,15.78358752]
[1764879196583,0.2,139.8,139.79,20.44777593]
[1764879197388,0.2,139.83,139.79,42.99593315]
[1764879197557,0.2,139.83,139.81,4.66418841]
[1764879197961,0.2,139.83,139.81,21.66305241]
[1764879198959,0.2,139.83,139.81,24.15142819]
[1764879199189,0.2,139.83,139.81,28.8156166]
[1764879199569,0.2,139.83,139.81,12.5067526]
[1764879199872,0.2,139.83,139.81,28.8156166]
[1764879204400,0.2,139.84,139.83,16.308864]
[1764879204593,0.2,139.84,139.83,28.91305241]
[1764879204770,0.2,139.84,139.83,29.60305241]
[1764879205292,0.2,139.84,139.83,36.75459356]
[1764879205495,0.2,139.84,139.83,32.09040515]
[1764879205800,0.2,139.84,139.83,36.75459356]
[1764879206095,0.2,139.84,139.82,7.15186939]
[1764879207073,0.2,139.84,139.82,7.84186939]
[1764879207482,0.2,139.84,139.82,7.15186939]
[1764879207776,0.91,139.84,139.82,7.15186939]
[1764879207977,4.66418841,139.83,139.79,7.15310015]
[1764879208180,4.66418841,139.8,139.75,5.35418841]
[1764879208381,5.37418841,139.79,139.76,7.154902]
[1764879208685,4.66418841,139.78,139.76,7.154902]
[1764879209405,5.37418841,139.79,139.77,7.15461114]
[1764879209904,5.37418841,139.79,139.76,7.15512306]
[1764879210290,7.15278618,139.81,139.76,7.15512306]
[1764879210495,12.35971717,139.8,139.76,7.84512306]
[1764879210691,12.35971717,139.8,139.76,19.51484023]
[1764879210903,13.06971717,139.8,139.76,7.15512306]
[1764879211104,13.06971717,139.8,139.76,7.84512306]
[1764879211491,12.35971717,139.79,139.76,7.15512306]
[1764879211893,12.35971717,139.78,139.75,7.94]
[1764879212204,7.15278618,139.81,139.76,0.69]
[1764879212407,12.35971717,139.81,139.76,0.69]
[1764879212584,12.35971717,139.8,139.76,0.69]
[1764879213193,13.06971717,139.8,139.76,0.69]
[1764879213399,13.06971717,139.8,139.75,45.34424201]
[1764879213400,13.06971717,139.79,139.75,15.09543719]
[1764879213708,12.35971717,139.78,139.73,55.18968868]
[1764879214015,13.06971717,139.78,139.75,7.15532867]
[1764879214208,12.35971717,139.78,139.73,38.19082468]
[1764879214509,13.06971717,139.79,139.75,19.51528646]
[1764879214985,13.06971717,139.79,139.75,7.15556929]
[1764879215186,13.06971717,139.78,139.75,7.15556929]
[1764879215907,19.5136706,139.79,139.75,7.84556929]
[1764879216105,20.2236706,139.79,139.75,7.84556929]
[1764879216493,13.06971717,139.78,139.74,7.15595853]
[1764879216810,12.35971717,139.77,139.73,27.45619374]
[1764879217013,13.06971717,139.77,139.73,15.09647657]
[1764879217215,7.86321286,139.8,139.74,20.20571452]
[1764879217513,12.35971717,139.79,139.74,20.20571452]
[1764879217705,12.35971717,139.77,139.74,7.15599735]
[1764879218213,13.06971717,139.77,139.74,7.15599735]
[1764879219499,12.35971717,139.78,139.75,0.69]
[1764879219802,12.35971717,139.76,139.73,7.94]
[1764879220001,12.35971717,139.77,139.74,0.69]
[1764879220312,13.06971717,139.77,139.73,7.94]
[1764879220504,0.71,139.76,139.73,15.78643665]
[1764879220685,13.06971717,139.77,139.73,15.78643665]
[1764879221792,20.22439223,139.77,139.73,15.78643665]
[1764879222093,20.22439223,139.77,139.74,0.69]
[1764879222094,19.51439223,139.77,139.74,0.69]
[1764879222314,19.51439223,139.77,139.73,28.14615382]
[1764879222315,20.22439223,139.77,139.73,28.14615382]
[1764879222916,12.35971717,139.76,139.73,15.09643665]
[1764879223120,13.01971717,139.76,139.73,7.15643665]
[1764879224318,0.66,139.76,139.73,7.15643665]
[1764879226120,20.17439223,139.77,139.73,7.85643665]
[1764879226321,20.17439223,139.77,139.73,0.7]
[1764879226907,12.35971717,139.76,139.73,0.7]
[1764879227521,13.01971717,139.76,139.73,0.7]
[1764879228017,12.35971717,139.76,139.73,7.85646024]
[1764879228217,19.51439223,139.77,139.73,7.85646024]
[1764879228416,7.81467506,139.77,139.73,7.85646024]
[1764879228626,20.17439223,139.77,139.73,7.85646024]
[1764879229914,20.17439223,139.77,139.73,0.7]
[1764879230526,12.47517416,139.77,139.73,0.7]
[1764879231232,7.81467506,139.77,139.73,12.51711507]
[1764879231535,12.47517416,139.77,139.73,12.51711507]
[1764879231829,12.47517416,139.77,139.73,7.85661597]
[1764879232528,12.47517416,139.77,139.74,0.7]
[1764879233323,5.3204991,139.76,139.72,0.7]
[1764879233523,5.3204991,139.76,139.72,5.3604991]